fUST/lending_fUST_20250207
["ID","MTS","AMOUNT","RATE_DAILY","PERIOD"]
[351999179,1738872652355,-3000.0,0.0001464,30]
[351999180,1738872652365,-1021.77828934,0.00014646,2]
[351999181,1738872652376,-1239.28050636,0.00014646,2]
[351999182,1738872652385,-210.71949366,0.0001465,30]
[351999183,1738872652517,-500.0,0.00013835,2]
[351999184,1738872652527,-500.0,0.00014383,2]
[351999185,1738872652536,-500.0,0.0001452,2]
[351999186,1738872652546,-2789.28050634,0.0001465,30]
[351999187,1738872652556,-500.0,0.00014657,2]
[351999188,1738872652568,-500.0,0.00014657,2]
[351999189,1738872652577,-500.0,0.00014657,2]
[351999190,1738872652587,-550.17,0.00014657,2]
[351999191,1738872652596,-500.0,0.00014657,2]
[351999192,1738872652606,-500.0,0.00014657,2]
[351999193,1738872652616,-500.0,0.00014657,2]
[351999194,1738872652626,-500.0,0.00014657,2]
[351999195,1738872652636,-500.0,0.00014657,2]
[351999196,1738872652646,-500.0,0.00014657,2]
[351999197,1738872652656,-500.0,0.00014657,2]
[351999198,1738872652665,-500.0,0.00014657,2]
[351999199,1738872652676,-221.4,0.00014657,2]
[351999200,1738872652686,-4597.74,0.00014657,2]
[351999201,1738872652695,-500.0,0.00014657,2]
[351999202,1738872652704,-1229.93,0.00014657,2]
[351999203,1738872652715,-882.67,0.00014657,2]
[351999204,1738872652725,-151.0,0.00014657,2]
[351999205,1738872652735,-500.0,0.00014657,2]
[351999206,1738872652745,-500.0,0.00014657,2]
[351999207,1738872652755,-500.0,0.00014657,2]
[351999208,1738872652766,-151.0,0.00014657,2]
[351999209,1738872652775,-151.0,0.00014657,2]
[351999210,1738872652785,-500.0,0.00014657,2]
[351999211,1738872652795,-500.0,0.00014657,2]
[351999212,1738872652805,-500.0,0.00014657,2]
[351999213,1738872652814,-778.92,0.00014657,2]
[351999214,1738872652825,-500.0,0.00014657,2]
[351999215,1738872652834,-763.38,0.00014657,2]
[351999216,1738872652843,-2406.64,0.00014657,2]
[351999217,1738872652852,-502.66,0.00014657,2]
[351999218,1738872652863,-1839.56198751,0.00014657,2]
[351999219,1738872652883,-1468.44801249,0.00014657,2]
[351999220,1738872652892,-743.51,0.00014657,2]
[351999221,1738872652902,-1008.51974122,0.00014657,2]
[351999222,1738872652914,-106.64025878,0.00014657,2]
[351999223,1738872652923,-500.0,0.00014657,2]
[351999224,1738872652931,-108.75682582,0.00014657,2]
[351999225,1738872653178,-500.0,0.00013698,2]
[351999226,1738872653192,-500.0,0.00013698,2]
[351999227,1738872653205,-500.0,0.00013698,2]
[351999228,1738872653220,-500.0,0.00013835,2]
[351999229,1738872653232,-500.0,0.00013835,2]
[351999230,1738872653245,-500.0,0.00013835,2]
[351999231,1738872653258,-500.0,0.00013972,2]
[351999232,1738872653270,-500.0,0.00013972,2]
[351999233,1738872653285,-500.0,0.00014109,2]
[351999234,1738872653298,-378.76,0.00014246,2]
[351999235,1738872653311,-391.24317418,0.00014657,2]
[351999236,1738872653322,-956.19,0.00014657,2]
[351999237,1738872653333,-500.0,0.00014657,2]
[351999238,1738872653346,-500.0,0.00014657,2]
[351999239,1738872653358,-500.0,0.00014657,2]
[351999240,1738872653371,-532.86,0.00014657,2]
[351999241,1738872653383,-500.0,0.00014657,2]
[351999242,1738872653396,-898.76,0.00014657,2]
[351999243,1738872653408,-1943.75,0.00014657,2]
[351999244,1738872653422,-9899.09,0.00014657,2]
[351999245,1738872653436,-500.0,0.00014657,2]
[351999246,1738872653449,-500.0,0.00014657,2]
[351999247,1738872653462,-3000.0,0.0001466,30]
[351999248,1738872653474,-210.419671,0.0001466,2]
[351999249,1738872653485,-210.419671,0.0001466,2]
[351999250,1738872653496,-3000.0,0.0001467,30]
[351999251,1738872653508,-3000.0,0.0001468,30]
[351999252,1738872653521,-151.0,0.0001468,2]
[351999253,1738872653536,-3000.0,0.0001469,30]
[351999254,1738872653550,-3000.0,0.000147,30]
[351999255,1738872653563,-142.33423609,0.000147,2]
[351999256,1738872653739,-500.0,0.00013698,2]
[351999257,1738872653751,-500.0,0.00013698,2]
[351999258,1738872653763,-500.0,0.00013835,2]
[351999259,1738872653775,-500.0,0.00013835,2]
[351999260,1738872653787,-500.0,0.00013972,2]
[351999261,1738872653798,-500.0,0.00013972,2]
[351999262,1738872653809,-500.0,0.00014109,2]
[351999263,1738872653821,-338.02,0.00014109,2]
[351999264,1738872653835,-161.98,0.00014109,2]
[351999265,1738872653846,-500.0,0.00014246,2]
[351999266,1738872653857,-500.0,0.00014246,2]
[351999267,1738872653868,-668.358,0.00014591,2]
[351999268,1738872653880,-8.66576391,0.000147,2]
[351999269,1738872653892,-191.412189,0.000147,2]
[351999270,1738872653904,-3000.0,0.0001471,30]
[351999271,1738872653915,-3000.0,0.0001472,30]
[351999272,1738872653927,-3000.0,0.0001473,30]
[351999273,1738872653938,-1288.32526538,0.00014734,2]
[351999274,1738872653949,-45242.72290226,0.0001479,2]
[351999275,1738872653960,-151.0,0.0001479,2]
[351999276,1738872653972,-151.0,0.0001479,2]
[351999277,1738872653985,-151.0,0.0001479,2]
[351999278,1738872653996,-151.0,0.0001479,2]
[351999279,1738872654008,-151.0,0.0001479,2]
[351999280,1738872654020,-329.87871,0.0001479,2]
[351999281,1738872654031,-329.87871,0.0001479,2]
[351999282,1738872654042,-151.0,0.0001479,2]
[351999283,1738872654053,-151.0,0.0001479,2]
[351999284,1738872654065,-151.0,0.0001479,2]
[351999285,1738872654077,-528.896617,0.0001479,2]
[351999286,1738872654089,-219.797501,0.0001479,2]
[351999287,1738872654100,-219.797501,0.0001479,2]
[351999288,1738872654113,-151.0,0.0001479,2]
[351999289,1738872654124,-151.0,0.0001479,2]
[351999290,1738872654135,-155.110873,0.0001479,2]
[351999291,1738872654145,-155.110873,0.0001479,2]
[351999292,1738872654155,-151.0,0.0001479,2]
[351999293,1738872654166,-158.484736,0.0001479,2]
[351999294,1738872654175,-158.484736,0.0001479,2]
[351999295,1738872654185,-158.673572,0.0001479,2]
[351999296,1738872654195,-158.673572,0.0001479,2]
[351999297,1738872654205,-151.0,0.0001479,2]
[351999298,1738872654215,-151.0,0.0001479,2]
[351999299,1738872654226,-151.0,0.0001479,2]
[351999300,1738872654238,-281.4525,0.00014793,2]
[351999301,1738872654248,-160.0,0.00014793,2]
[351999302,1738872654258,-500.0,0.00014794,2]
[351999303,1738872654268,-500.0,0.00014794,2]
[351999304,1738872654278,-500.0,0.00014794,2]
[351999305,1738872654287,-550.17,0.00014794,2]
[351999306,1738872654296,-500.0,0.00014794,2]
[351999307,1738872654307,-500.0,0.00014794,2]
[351999308,1738872654316,-500.0,0.00014794,2]
[351999309,1738872654326,-500.0,0.00014794,2]
[351999310,1738872654335,-500.0,0.00014794,2]
[351999311,1738872654344,-500.0,0.00014794,2]
[351999312,1738872654354,-4597.74,0.00014794,2]
[351999313,1738872654363,-500.0,0.00014794,2]
[351999314,1738872654374,-1229.93,0.00014794,2]
[351999315,1738872654385,-882.67,0.00014794,2]
[351999316,1738872654395,-500.0,0.00014794,2]
[351999317,1738872654406,-500.0,0.00014794,2]
[351999318,1738872654416,-500.0,0.00014794,2]
[351999319,1738872654426,-500.0,0.00014794,2]
[351999320,1738872654436,-500.0,0.00014794,2]
[351999321,1738872654447,-500.0,0.00014794,2]
[351999322,1738872654457,-778.92,0.00014794,2]
[351999323,1738872654468,-500.0,0.00014794,2]
[351999324,1738872654477,-763.38,0.00014794,2]
[351999325,1738872654487,-2406.64,0.00014794,2]
[351999326,1738872654497,-502.66,0.00014794,2]
[351999327,1738872654507,-3308.01,0.00014794,2]
[351999328,1738872654517,-743.51,0.00014794,2]
[351999329,1738872654527,-1115.16,0.00014794,2]
[351999330,1738872654536,-500.0,0.00014794,2]
[351999331,1738872654546,-500.0,0.00014794,2]
[351999332,1738872654557,-956.19,0.00014794,2]
[351999333,1738872654570,-500.0,0.00014794,2]
[351999334,1738872654579,-500.0,0.00014794,2]
[351999335,1738872654589,-500.0,0.00014794,2]
[351999336,1738872654599,-532.86,0.00014794,2]
[351999337,1738872654610,-500.0,0.00014794,2]
[351999338,1738872654868,-898.76,0.00014794,2]
[351999339,1738872654884,-1943.75,0.00014794,2]
[351999340,1738872654898,-9899.09,0.00014794,2]
[351999341,1738872654908,-500.0,0.00014794,2]
[351999342,1738872654918,-500.0,0.00014794,2]
[351999343,1738872654928,-151.0,0.000148,2]
[351999344,1738872654938,-633.02448004,0.00014827,2]
[351999345,1738872654947,-210.419671,0.00014831,2]
[351999346,1738872654957,-210.419671,0.00014831,2]
[351999347,1738872654967,-151.0,0.00014831,2]
[351999348,1738872654979,-151.0,0.00014831,2]
[351999349,1738872654989,-151.0,0.00014831,2]
[351999350,1738872654999,-1288.32526538,0.00014834,2]
[351999351,1738872655010,-2000.0,0.000149,2]
[351999352,1738872655020,-2497.32068824,0.000149,2]
[351999353,1738872655030,-622.0,0.000149,2]
[351999354,1738872655040,-22603.00016514,0.00014917,2]
[351999355,1738872655050,-160.0,0.0001493,2]
[351999356,1738872655059,-500.0,0.00014931,2]
[351999357,1738872655069,-632.45,0.00014931,2]
[351999358,1738872655078,-500.0,0.00014931,2]
[351999359,1738872655088,-550.17,0.00014931,2]
[351999360,1738872655097,-500.0,0.00014931,2]
[351999361,1738872655107,-500.0,0.00014931,2]
[351999362,1738872655116,-500.0,0.00014931,2]
[351999363,1738872655126,-348.99565936,0.00014931,2]
[351999364,1738872655136,-261.22377835,0.00014931,2]
[351999365,1738872655146,-500.0,0.00014931,2]
[351999366,1738872655156,-151.0,0.00014931,2]
[351999367,1738872655166,-4597.74,0.00014931,2]
[351999368,1738872655175,-500.0,0.00014931,2]
[351999369,1738872655185,-1229.93,0.00014931,2]
[351999370,1738872655195,-882.67,0.00014931,2]
[351999371,1738872655204,-500.0,0.00014931,2]
[351999372,1738872655214,-500.0,0.00014931,2]
[351999373,1738872655225,-500.0,0.00014931,2]
[351999374,1738872655236,-500.0,0.00014931,2]
[351999375,1738872655246,-500.0,0.00014931,2]
[351999376,1738872655256,-500.0,0.00014931,2]
[351999377,1738872655266,-778.92,0.00014931,2]
[351999378,1738872655275,-500.0,0.00014931,2]
[351999379,1738872655285,-763.38,0.00014931,2]
[351999380,1738872655295,-2406.64,0.00014931,2]
[351999381,1738872655304,-502.66,0.00014931,2]
[351999382,1738872655313,-3308.01,0.00014931,2]
[351999383,1738872655323,-743.51,0.00014931,2]
[351999384,1738872655332,-1115.16,0.00014931,2]
[351999385,1738872655343,-500.0,0.00014931,2]
[351999386,1738872655353,-500.0,0.00014931,2]
[351999387,1738872655362,-956.19,0.00014931,2]
[351999388,1738872655371,-500.0,0.00014931,2]
[351999389,1738872655381,-500.0,0.00014931,2]
[351999390,1738872655391,-500.0,0.00014931,2]
[351999391,1738872655401,-532.86,0.00014931,2]
[351999392,1738872655410,-500.0,0.00014931,2]
[351999393,1738872655419,-898.76,0.00014931,2]
[351999394,1738872655429,-151.0,0.00014931,2]
[351999395,1738872655438,-1943.75,0.00014931,2]
[351999396,1738872655449,-9899.09,0.00014931,2]
[351999397,1738872655459,-500.0,0.00014931,2]
[351999398,1738872655468,-500.0,0.00014931,2]
[351999399,1738872655478,-1288.32526538,0.00014934,2]
[351999400,1738872655487,-500.0,0.00014973,2]
[351999401,1738872655497,-500.0,0.00014973,2]
[351999402,1738872655507,-521.62827337,0.00014973,2]
[351999403,1738872655517,-500.0,0.00014973,2]
[351999404,1738872655526,-500.0,0.00014973,2]
[351999405,1738872655537,-500.0,0.00014973,2]
[351999406,1738872655547,-500.0,0.00014973,2]
[351999407,1738872655562,-500.0,0.00014973,2]
[351999408,1738872655572,-500.0,0.00014973,2]
[351999409,1738872655582,-500.0,0.00014973,2]
[351999410,1738872655594,-576.16487334,0.00014973,2]
[351999411,1738872655603,-500.0,0.00014973,2]
[351999412,1738872655613,-500.0,0.00014973,2]
[351999413,1738872655623,-500.0,0.00014973,2]
[351999414,1738872655633,-151.89023723,0.00014973,2]
[351999415,1738872655642,-163.16237792,0.00014973,2]
[351999416,1738872655653,-261.44742609,0.00014973,2]
[351999417,1738872655662,-500.0,0.00014973,2]
[351999418,1738872655671,-430.72032239,0.00014973,2]
[351999419,1738872655681,-330.37820703,0.00014973,2]
[351999420,1738872655691,-500.0,0.00014973,2]
[351999421,1738872655701,-500.0,0.00014973,2]
[351999422,1738872655711,-155.110873,0.00014973,2]
[351999423,1738872655721,-155.110873,0.00014973,2]
[351999424,1738872655730,-151.0,0.00014973,2]
[351999425,1738872655741,-158.484736,0.00014973,2]
[351999426,1738872655750,-158.484736,0.00014973,2]
[351999427,1738872655760,-158.673572,0.00014973,2]
[351999428,1738872655770,-158.673572,0.00014973,2]
[351999429,1738872655779,-151.0,0.00014973,2]
[351999430,1738872655789,-160.0,0.00014999,2]
[351999431,1738872655798,-21488.3341899,0.00015,5]
[351999439,1738873629143,-487.37491997,0.0001315,2]
[351999440,1738873631115,-112.62508003,0.0001315,2]
[351999441,1738873631138,-232.82051323,0.00013697,2]
[351999442,1738873635087,-67.17948677,0.00013697,2]
[351999443,1738873635108,-500.0,0.00013698,2]
[351999444,1738873635130,-332.82051323,0.00013698,2]
[351999445,1738873640136,-211.06767442,0.00013698,2]
[351999446,1738873640158,-41.97063675,0.00013698,2]
[351999467,1738873832737,-1733.9597447,0.0001287,2]
[351999469,1738873832747,-840.91122939,0.00013,2]
[351999471,1738873832756,-236.46549885,0.00013598,2]
[351999476,1738873832795,-190.82149318,0.00013598,2]
[351999477,1738873832804,-300.0,0.00013697,2]
[351999480,1738873832814,-407.65850682,0.00013698,2]
[351999485,1738873832853,-92.34149318,0.00013698,2]
[351999487,1738873832862,-273.90233642,0.00013698,2]
[351999489,1738873832871,-500.0,0.00013698,2]
[351999491,1738873832880,-506.8853489,0.00013698,2]
[351999493,1738873832889,-160.1708215,0.00013698,2]
[351999496,1738873832901,-339.8291785,0.00013698,2]
[351999498,1738873832910,-508.5275192,0.00013698,2]
[351999500,1738873832921,-500.0,0.00013698,2]
[351999502,1738873832935,-613.17915123,0.00013698,2]
[351999504,1738873832944,-18.88415107,0.00013698,2]
[351999506,1738873832955,-430.205,0.00013698,2]
[351999574,1738873838664,-50.91084893,0.00013698,2]
[351999576,1738873838674,-500.0,0.00013698,2]
[351999578,1738873838684,-500.0,0.00013698,2]
[351999580,1738873838696,-500.0,0.00013698,2]
[351999582,1738873838705,-500.0,0.00013698,2]
[351999584,1738873838714,-500.0,0.00013698,2]
[351999586,1738873838724,-500.0,0.00013698,2]
[351999588,1738873838733,-500.0,0.00013698,2]
[351999590,1738873838742,-500.0,0.00013698,2]
[351999592,1738873838752,-500.0,0.00013698,2]
[351999594,1738873838763,-500.0,0.00013698,2]
[351999596,1738873838773,-500.0,0.00013698,2]
[351999598,1738873838783,-500.0,0.00013698,2]
[351999600,1738873838792,-500.0,0.00013698,2]
[351999602,1738873838801,-414.06222376,0.00013698,2]
[351999604,1738873838811,-500.0,0.00013698,2]
[351999606,1738873838820,-500.0,0.00013698,2]
[351999608,1738873838830,-500.0,0.00013698,2]
[351999610,1738873838840,-500.0,0.00013698,2]
[351999612,1738873838849,-500.0,0.00013698,2]
[351999614,1738873838859,-500.0,0.00013698,2]
[351999616,1738873838869,-500.0,0.00013698,2]
[351999618,1738873838878,-500.0,0.00013698,2]
[351999620,1738873838888,-500.0,0.00013698,2]
[351999622,1738873838898,-503.4158796,0.00013698,2]
[351999645,1738873839103,-497.31558103,0.00013698,2]
[351999647,1738873839115,-500.0,0.00013698,2]
[351999649,1738873839125,-500.0,0.00013698,2]
[351999651,1738873839135,-500.0,0.00013698,2]
[351999652,1738873839146,-273.51567268,0.00013698,2]
[351999653,1738873839156,-500.0,0.00013698,2]
[351999654,1738873839167,-500.0,0.00013698,2]
[351999655,1738873839178,-500.0,0.00013698,2]
[351999656,1738873839192,-500.0,0.00013698,2]
[351999657,1738873839203,-500.0,0.00013698,2]
[351999658,1738873839212,-500.0,0.00013698,2]
[351999659,1738873839222,-201.510842,0.00013698,2]
[351999660,1738873839232,-500.0,0.00013698,2]
[351999661,1738873839242,-500.0,0.00013698,2]
[351999662,1738873839252,-500.0,0.00013698,2]
[351999663,1738873839262,-500.0,0.00013698,2]
[351999664,1738873839273,-500.0,0.00013698,2]
[351999665,1738873839282,-500.0,0.00013698,2]
[351999666,1738873839292,-500.0,0.00013698,2]
[351999667,1738873839303,-500.0,0.00013698,2]
[351999668,1738873839313,-500.0,0.00013698,2]
[351999669,1738873839322,-500.0,0.00013698,2]
[351999671,1738873839332,-243.79489024,0.00013698,2]
[351999672,1738873839341,-500.0,0.00013698,2]
[351999674,1738873839351,-500.0,0.00013698,2]
[351999676,1738873839360,-500.0,0.00013698,2]
[351999678,1738873839369,-500.0,0.00013698,2]
[351999680,1738873839379,-500.0,0.00013698,2]
[351999682,1738873839389,-500.0,0.00013698,2]
[351999685,1738873839400,-500.0,0.00013698,2]
[351999687,1738873839410,-500.0,0.00013698,2]
[351999688,1738873839419,-500.0,0.00013698,2]
[351999691,1738873839429,-500.0,0.00013698,2]
[351999693,1738873839441,-500.0,0.00013698,2]
[351999695,1738873839451,-500.0,0.00013698,2]
[351999697,1738873839461,-500.0,0.00013698,2]
[351999699,1738873839471,-503.54131032,0.00013698,2]
[351999701,1738873839480,-500.0,0.00013698,2]
[351999703,1738873839490,-575.81555223,0.00013698,2]
[351999705,1738873839500,-500.0,0.00013698,2]
[351999707,1738873839509,-500.0,0.00013698,2]
[351999709,1738873839519,-504.13369875,0.00013698,2]
[351999711,1738873839528,-500.0,0.00013698,2]
[351999713,1738873839537,-500.0,0.00013698,2]
[351999715,1738873839547,-251.90279516,0.00013698,2]
[351999717,1738873839557,-500.0,0.00013698,2]
[351999719,1738873839566,-500.0,0.00013698,2]
[351999721,1738873839575,-500.0,0.00013698,2]
[351999723,1738873839585,-479.51224932,0.00013698,2]
[351999725,1738873839595,-500.0,0.00013698,2]
[351999727,1738873839604,-500.0,0.00013698,2]
[351999729,1738873839613,-230.94,0.00013698,2]
[351999731,1738873839623,-500.0,0.00013698,2]
[351999733,1738873839632,-500.0,0.00013698,2]
[351999735,1738873839641,-500.0,0.00013698,2]
[351999737,1738873839651,-500.0,0.00013698,2]
[351999739,1738873839660,-500.0,0.00013698,2]
[351999741,1738873839669,-500.0,0.00013698,2]
[351999743,1738873839679,-500.0,0.00013698,2]
[351999745,1738873839689,-500.0,0.00013698,2]
[351999747,1738873839699,-388.92401548,0.00013698,2]
[351999749,1738873839709,-500.0,0.00013698,2]
[351999751,1738873839719,-339.75689561,0.00013698,2]
[351999753,1738873839728,-40.94755689,0.00013698,2]
[351999756,1738873839744,-607.46244311,0.00013698,2]
[351999758,1738873839753,-500.0,0.00013698,2]
[351999760,1738873839764,-500.0,0.00013698,2]
[351999762,1738873839774,-500.0,0.00013698,2]
[351999764,1738873839784,-448.58034432,0.00013698,2]
[351999766,1738873839794,-500.0,0.00013698,2]
[351999768,1738873839803,-500.0,0.00013698,2]
[351999770,1738873839813,-470.11444411,0.00013698,2]
[351999772,1738873839822,-500.0,0.00013698,2]
[351999774,1738873839833,-503.41351428,0.00013698,2]
[351999776,1738873839842,-600.36317873,0.00013698,2]
[351999777,1738873839851,-500.0,0.00013698,2]
[351999780,1738873839860,-498.18056452,0.00013698,2]
[351999782,1738873839869,-500.0,0.00013698,2]
[351999784,1738873839878,-500.0,0.00013698,2]
[351999786,1738873839888,-176.82274771,0.00013698,2]
[351999788,1738873839898,-500.0,0.00013698,2]
[351999790,1738873839907,-500.0,0.00013698,2]
[351999792,1738873839917,-500.0,0.00013698,2]
[351999793,1738873839927,-500.0,0.00013698,2]
[351999796,1738873839940,-500.0,0.00013698,2]
[351999798,1738873839949,-500.0,0.00013698,2]
[351999800,1738873839958,-500.0,0.00013698,2]
[351999802,1738873839969,-500.0,0.00013698,2]
[351999804,1738873839978,-500.0,0.00013698,2]
[351999806,1738873839988,-500.0,0.00013698,2]
[351999808,1738873839998,-500.0,0.00013698,2]
[351999810,1738873840009,-358.57398539,0.00013698,2]
[351999812,1738873840019,-500.0,0.00013698,2]
[351999814,1738873840028,-500.0,0.00013698,2]
[351999816,1738873840038,-263.73416788,0.00013698,2]
[351999818,1738873840047,-500.0,0.00013698,2]
[351999820,1738873840056,-500.0,0.00013698,2]
[351999822,1738873840065,-500.0,0.00013698,2]
[351999824,1738873840074,-500.0,0.00013698,2]
[351999826,1738873840084,-500.0,0.00013698,2]
[351999828,1738873840094,-502.63905769,0.00013698,2]
[351999830,1738873840103,-500.0,0.00013698,2]
[351999832,1738873840113,-500.0,0.00013698,2]
[351999834,1738873840122,-500.0,0.00013698,2]
[351999836,1738873840132,-500.0,0.00013698,2]
[351999838,1738873840142,-523.04241775,0.00013698,2]
[351999840,1738873840151,-500.0,0.00013698,2]
[351999842,1738873840164,-500.0,0.00013698,2]
[351999844,1738873840173,-500.0,0.00013698,2]
[351999846,1738873840183,-500.0,0.00013698,2]
[351999848,1738873840195,-500.0,0.00013698,2]
[351999850,1738873840206,-500.0,0.00013698,2]
[351999852,1738873840216,-221.35085405,0.00013698,2]
[351999854,1738873840226,-500.0,0.00013698,2]
[351999856,1738873840236,-500.0,0.00013698,2]
[351999858,1738873840246,-248.34835656,0.00013698,2]
[351999861,1738873840256,-500.0,0.00013698,2]
[351999864,1738873840266,-500.0,0.00013698,2]
[351999867,1738873840276,-500.0,0.00013698,2]
[351999869,1738873840286,-500.0,0.00013698,2]
[351999873,1738873840296,-500.0,0.00013698,2]
[351999875,1738873840306,-500.0,0.00013698,2]
[351999877,1738873840316,-500.0,0.00013698,2]
[351999879,1738873840325,-500.0,0.00013698,2]
[351999881,1738873840335,-500.0,0.00013698,2]
[351999883,1738873840345,-500.0,0.00013698,2]
[351999885,1738873840355,-500.0,0.00013698,2]
[351999887,1738873840364,-500.0,0.00013698,2]
[351999889,1738873840374,-576.86667353,0.00013698,2]
[351999891,1738873840385,-500.0,0.00013698,2]
[351999893,1738873840394,-500.0,0.00013698,2]
[351999895,1738873840404,-500.0,0.00013698,2]
[351999897,1738873840413,-500.0,0.00013698,2]
[351999899,1738873840423,-500.0,0.00013698,2]
[351999901,1738873840433,-500.0,0.00013698,2]
[351999903,1738873840448,-500.0,0.00013698,2]
[351999905,1738873840458,-500.0,0.00013698,2]
[351999907,1738873840468,-500.0,0.00013698,2]
[351999909,1738873840477,-500.0,0.00013698,2]
[351999911,1738873840487,-500.0,0.00013698,2]
[351999913,1738873840497,-500.0,0.00013698,2]
[351999915,1738873840507,-500.0,0.00013698,2]
[351999917,1738873840516,-500.0,0.00013698,2]
[351999919,1738873840527,-500.0,0.00013698,2]
[351999921,1738873840537,-500.0,0.00013698,2]
[351999923,1738873840548,-500.0,0.00013698,2]
[351999925,1738873840558,-500.0,0.00013698,2]
[351999927,1738873840568,-500.0,0.00013698,2]
[351999929,1738873840578,-500.0,0.00013698,2]
[351999931,1738873840588,-500.0,0.00013698,2]
[351999933,1738873840598,-500.0,0.00013698,2]
[351999935,1738873840608,-500.0,0.00013698,2]
[351999937,1738873840618,-558.54210064,0.00013698,2]
[351999939,1738873840628,-500.0,0.00013698,2]
[351999941,1738873840638,-500.0,0.00013698,2]
[351999943,1738873840649,-500.0,0.00013698,2]
[351999945,1738873840659,-500.0,0.00013698,2]
[351999947,1738873840669,-500.0,0.00013698,2]
[351999949,1738873840679,-500.0,0.00013698,2]
[351999951,1738873840692,-500.0,0.00013698,2]
[351999953,1738873840701,-500.0,0.00013698,2]
[351999955,1738873840710,-500.0,0.00013698,2]
[351999957,1738873840720,-500.0,0.00013698,2]
[351999959,1738873840729,-500.0,0.00013698,2]
[351999961,1738873840739,-500.0,0.00013698,2]
[351999963,1738873840748,-500.0,0.00013698,2]
[351999965,1738873840758,-500.0,0.00013698,2]
[351999967,1738873840768,-996.65,0.00013698,2]
[351999969,1738873840778,-500.0,0.00013698,2]
[351999971,1738873840788,-500.0,0.00013698,2]
[351999973,1738873840797,-500.0,0.00013698,2]
[351999975,1738873840807,-500.0,0.00013698,2]
[351999977,1738873840816,-500.0,0.00013698,2]
[351999979,1738873840825,-500.0,0.00013698,2]
[351999981,1738873840835,-500.0,0.00013698,2]
[351999983,1738873840844,-500.0,0.00013698,2]
[351999985,1738873840854,-6477.19,0.00013698,2]
[351999987,1738873840863,-500.0,0.00013698,2]
[351999989,1738873840872,-500.0,0.00013698,2]
[351999991,1738873840882,-1134.91,0.00013698,2]
[351999993,1738873840892,-409.05061874,0.00013698,2]
[351999995,1738873840901,-500.0,0.00013698,2]
[351999997,1738873840910,-500.0,0.00013698,2]
[351999999,1738873840920,-500.0,0.00013698,2]
[352000001,1738873840932,-500.0,0.00013698,2]
[352000003,1738873840945,-500.0,0.00013698,2]
[352000005,1738873840955,-500.0,0.00013698,2]
[352000007,1738873840966,-500.0,0.00013698,2]
[352000009,1738873840975,-500.0,0.00013698,2]
[352000011,1738873840984,-500.0,0.00013698,2]
[352000013,1738873840994,-500.0,0.00013698,2]
[352000015,1738873841003,-500.0,0.00013698,2]
[352000017,1738873841012,-500.0,0.00013698,2]
[352000019,1738873841022,-500.0,0.00013698,2]
[352000021,1738873841031,-500.0,0.00013698,2]
[352000023,1738873841041,-500.0,0.00013698,2]
[352000025,1738873841051,-568.31187269,0.00013698,2]